Cogmind - Beta 13 @@@ ROGUE MODE // 2024.03.24 @ 00:55:42 Player: Ether Result: Destroyed by 22-G1M(R) with Subdweller Laser Performance ------------- Evolutions (0) 0 Regions Visited (3) 600 Robots Destroyed (15) 75 Value Destroyed (414) 414 Prototype IDs (1) 20 Alien Tech Used (0) 0 Bonus (0) 0 TOTAL SCORE: 1109 Bonus ------- None Cogmind --------- Core Integrity 0/250 Matter 300/300 Energy 100/100 System Corruption 0% Temperature Cool (6) Movement Core (50) Location -10/Subcaves Parts ------- > --- POWER (1) -------- (None) > --- PROPULSION (2) --- (None) > --- UTILITY (2) ------ (None) > --- WEAPON (2) ------- (None) > --- INVENTORY (5) ---- Aluminum Leg Scrap Shield Decoy Drone Bay Peak State ------------ > --- POWER ------------ Light Ion Engine > --- PROPULSION ------- Aluminum Leg Myomer Leg > --- UTILITY ---------- Medium Storage Unit Experimental Sensor Array > --- WEAPON ----------- EM Pulse Gun Subdweller Machine Gun > --- INVENTORY -------- Aluminum Leg Aluminum Leg Small Storage Unit ECM Suite Scrap Shield Decoy Drone Bay Medium Laser Datajack [Rating: 24] Favorites ----------- Power Light Ion Engine Engine Light Ion Engine Power Core Light Nuclear Core Propulsion Aluminum Leg Leg Aluminum Leg Wheel Compact Wheel Utility Medium Storage Unit Device Experimental Sensor Array Storage Medium Storage Unit Weapon Assault Rifle Energy Gun EM Pulse Gun Ballistic Gun Assault Rifle Build | -11 -10 -10 -10 ------- Run | Yrd Mat Min Sub Slots Evolved . | . . . . Power . | . . . . Propulsion . | . . . . Utility . | . . . . Weapon . | . . . . Parts Attached 23 | 8 7 6 2 Power 3 | 1 1 1 . Engine 2 | 1 . 1 . Core 1 | . 1 . . Reactor . | . . . . Propulsion 8 | 4 2 1 1 Treads . | . . . . Leg 5 | 1 2 1 1 Wheel 3 | 3 . . . Hover . | . . . . Flight . | . . . . Utility 7 | 2 2 3 . Device 3 | 1 . 2 . Storage 4 | 1 2 1 . Processor . | . . . . Hackware . | . . . . Protection . | . . . . Artifact . | . . . . Weapon 5 | 1 2 1 1 Energy Gun 2 | 1 . 1 . Energy Cannon . | . . . . Ballistic Gun 3 | . 2 . 1 Ballistic Cannon . | . . . . Launcher . | . . . . Special Weapon . | . . . . Impact Weapon . | . . . . Slashing Weapon . | . . . . Piercing Weapon . | . . . . Special Melee Weapon . | . . . . Unidentified Prototypes 1 | . . 1 . Parts Lost 10 | . 1 3 6 Power 2 | . . 1 1 Propulsion 3 | . . 1 2 Utility 2 | . 1 . 1 Weapon 3 | . . 1 2 Highest Loss Streak 4 | . 1 3 4 To Critical Strikes 1 | . . . 1 Average Slot Usage (%) 95 | . 93 98 83 Engine 11 | . 7 13 10 Core 2 | . 6 . . Leg 22 | . 13 27 21 Wheel 4 | . 14 . . Device 12 | . 10 12 13 Storage 14 | . 15 14 11 Energy Gun 9 | . 3 13 10 Ballistic Gun 16 | . 21 14 14 Naked Turns 1 | . . . 1 Heaviest Build 49 | 11 49 49 20 Greatest Support 35 | 32 32 20 35 Greatest Overweight (x) 4 | . 2 2 4 Average Overweight (x) . | . . . . Largest Inventory Capacity 15 | 8 15 15 10 Average Capacity 11 | 7 14 10 9 Most Carried 14 | 8 14 14 10 Average Carried 8 | 6 9 9 9 Final Capacity 15 | 8 15 10 5 Final Carried 14 | 7 14 10 5 Class Distribution -------------------- 100% | Mutant Dominant Class ---------------- Mutant | -10/Materials Mutant | -10/Mines Mutant | -10/Subcaves Resources | -11 -10 -10 -10 ----------- Run | Yrd Mat Min Sub Matter Collected 620 | 280 205 109 26 Remotely . | . . . . Salvage Created 620 | 178 272 83 87 Parts 25 | 7 11 5 2 Haulers Intercepted . | . . . . Recyclers Shooed 3 | 2 1 . . Parts Field Recycled . | . . . . Retrieved Matter . | . . . . Parts Self-Destructed 1 | . . . 1 Prevented . | . . . . Kills | -11 -10 -10 -10 ------- Run | Yrd Mat Min Sub Combat Hostiles Destroyed 10 | . 6 2 2 Guns 10 | . 6 2 2 Classes Destroyed 7 | 3 3 . 1 Worker 1 | 1 . . . Tunneler 2 | 2 . . . Recycler 1 | 1 . . . Watcher 1 | . 1 . . Swarmer 1 | . 1 . . Grunt 7 | . 5 2 . Subdweller 2 | . . . 2 Best Kill Streak 3 | 2 3 2 1 Combat Bots Only 3 | . 3 2 1 Max Kills in Single Turn 1 | 1 1 1 1 Gunslinging . | . . . . Exploded . | . . . . Melee . | . . . . Uniques/NPCs Destroyed . | . . . . Combat | -11 -10 -10 -10 -------- Run | Yrd Mat Min Sub Hostile Shots Fired 111 | . 37 19 55 Missed 39 | . 6 7 26 Damage Taken 1162 | . 381 162 619 Core 258 | . 69 25 164 Absorbed by Shields . | . . . . Core Remaining (%) 100 | 100 . . . Volleys Fired 69 | 25 25 12 7 Largest 2 | 1 2 2 2 Hottest 60 | 50 40 60 60 Shots Fired 106 | 25 50 22 9 Gun 106 | 25 50 22 9 Cannon . | . . . . Launcher . | . . . . Special . | . . . . Kinetic 75 | . 50 18 7 Thermal 25 | 25 . . . Explosive . | . . . . Electromagnetic 6 | . . 4 2 Robot Hit Streak 6 | 6 6 5 3 Robot Miss Streak 5 | 5 3 3 1 Penetration Max . | . . . . Secondary Targets . | . . . . Shots Hit Robots 59 | 15 27 12 5 Core Hits 25 | 5 13 5 2 Critical Kills 1 | . . . 1 Critical Parts Destroyed . | . . . . Critical Strikes 4 | 3 . . 1 Burn 3 | 3 . . . Destroy 1 | . . . 1 Melee Attacks . | . . . . Impact . | . . . . Slashing . | . . . . Piercing . | . . . . Sneak Attacks . | . . . . Combat Hostiles . | . . . . Follow-up Attacks . | . . . . Damage Inflicted 806 | 200 356 138 112 Guns 806 | 200 356 138 112 Cannons . | . . . . Explosions . | . . . . Melee . | . . . . Ramming . | . . . . Kinetic 568 | . 356 111 101 Thermal 200 | 200 . . . Explosive . | . . . . Electromagnetic 38 | . . 27 11 Impact . | . . . . Slashing . | . . . . Piercing . | . . . . Highest Corruption . | . . . . Average Corruption . | . . . . Corruption Purged . | . . . . Corruption Blocked . | . . . . Overload Shots . | . . . . Overflow Damage . | . . . . Projectiles . | . . . . Explosions . | . . . . Melee . | . . . . Knockbacks . | . . . . Impact . | . . . . Kinetic . | . . . . Secondary . | . . . . Self-Inflicted Damage . | . . . . Shots . | . . . . Rammed . | . . . . Targets Rammed . | . . . . Kicked . | . . . . Crushed . | . . . . Highest Temperature 60 | 60 7 9 . Average Temperature 16 | 23 2 3 . Received Heat Transfer 423 | . 204 93 126 Siege Activations . | . . . . Robots Corrupted . | . . . . Combat Hostiles . | . . . . Parts Fried . | . . . . Impact Corruptions . | . . . . Robots Melted . | . . . . Combat Hostiles . | . . . . Parts Melted 1 | 1 . . . Heat Transferred 814 | 814 . . . Parts Sabotaged . | . . . . Parts Stolen . | . . . . Parts Stripped . | . . . . Power Chain Reactions . | . . . . Alert | -11 -10 -10 -10 ------- Run | Yrd Mat Min Sub Peak Influence 139 | 20 139 72 . Initial 52 | . 13 52 . Average 37 | 9 73 24 . Maximum Alert Level . | . . . . Low Security (%) 100 | 100 100 100 . Level 1 . | . . . . Level 2 . | . . . . Level 3 . | . . . . Level 4 . | . . . . Level 5 . | . . . . High Security . | . . . . Max Security . | . . . . Squads Dispatched 2 | . 2 . . Investigation . | . . . . Extermination . | . . . . Reinforcement 2 | . 2 . . Assault . | . . . . Garrison . | . . . . Intercept . | . . . . Searches Triggered . | . . . . Construction Impeded . | . . . . Haulers Reinforced . | . . . . Active Scanning Responses . | . . . . Cargo Convoy Interrupts . | . . . . Stealth | -11 -10 -10 -10 --------- Run | Yrd Mat Min Sub Distress Signals 1 | . 1 . . Communications Jammed . | . . . . Distress Signals . | . . . . Times Spotted 27 | . 14 3 10 Peak Tracking Total 7 | . 5 2 7 Tactical Retreats 2 | . 2 . . Traps | -11 -10 -10 -10 ------- Run | Yrd Mat Min Sub Traps Triggered . | . . . . Indirectly . | . . . . Trap Hack Attempts . | . . . . Triggered . | . . . . Disarmed . | . . . . Reprogrammed . | . . . . Reused . | . . . . Traps Extracted . | . . . . Installed . | . . . . Triggered . | . . . . Machines | -11 -10 -10 -10 ---------- Run | Yrd Mat Min Sub Machines Disabled 1 | . 1 . . Max in Single Turn 1 | . 1 . . Machines Repaired . | . . . . Machines Dismantled . | . . . . Machines Sabotaged . | . . . . Overloaded Fab Kills . | . . . . Hacking | -11 -10 -10 -10 --------- Run | Yrd Mat Min Sub Machines Accessed 5 | . 4 1 . Terminals 4 | . 4 . . Fabricators . | . . . . Repair Stations . | . . . . Recycling Units . | . . . . Scanalyzers . | . . . . Garrison Access . | . . . . Total Hacks 8 | . 7 1 . Successful 6 | . 5 1 . Failed 2 | . 2 . . Catastrophic 1 | . 1 . . Database Lockouts . | . . . . Manual 4 | . 2 2 . Terminals 7 | . 7 . . Fabricators . | . . . . Repair Stations . | . . . . Recycling Units . | . . . . Scanalyzers . | . . . . Garrison Access . | . . . . Terminal Hacks 6 | . 5 1 . Record 2 | . 2 . . Open Door 1 | . . 1 . Emergency Access Points 1 | . 1 . . Recall Reinforcements 1 | . 1 . . Zone Layout 1 | . 1 . . Fabricator Hacks . | . . . . Repair Station Hacks . | . . . . Recycling Unit Hacks . | . . . . Scanalyzer . | . . . . Garrison Access Hacks . | . . . . Unauthorized Hacks . | . . . . Terminals . | . . . . Fabricators . | . . . . Repair Stations . | . . . . Recycling Units . | . . . . Scanalyzers . | . . . . Garrison Access . | . . . . Data Cores Recovered . | . . . . Used . | . . . . Hacking Detections 4 | . 4 . . Full Trace Events . | . . . . Feedback Events . | . . . . Feedback Blocked . | . . . . Robot Schematics Acquired . | . . . . Robots Built . | . . . . Authchips . | . . . . Time . | . . . . Total Robot Build Rating . | . . . . Part Schematics Acquired . | . . . . Parts Built . | . . . . Authchips . | . . . . Time . | . . . . Total Part Build Rating . | . . . . Parts Repaired . | . . . . Time . | . . . . Parts Recycled . | . . . . Recycled Matter . | . . . . Retrieved Matter . | . . . . Retrieved Components . | . . . . Parts Scanalyzed . | . . . . Part Schematics Acquired . | . . . . Parts Damaged . | . . . . Bothacking | -11 -10 -10 -10 ------------ Run | Yrd Mat Min Sub Used RIF Installer . | . . . . Robots Hacked . | . . . . Non-combat . | . . . . Combat . | . . . . Robot Hacks Applied . | . . . . Relay Couplers Released . | . . . . Fabnet Peak Effective % . | . . . . Robots Rewired . | . . . . Allies Hacked . | . . . . Hacks Repelled . | . . . . Allies | -11 -10 -10 -10 -------- Run | Yrd Mat Min Sub Total Allies . | . . . . Largest Group . | . . . . Highest-Rated Group . | . . . . Highest-Rated Ally . | . . . . Total Orders . | . . . . Ally Attacks . | . . . . Total Damage . | . . . . Kills . | . . . . Allies Corrupted . | . . . . Allies Melted . | . . . . Intel | -11 -10 -10 -10 ------- Run | Yrd Mat Min Sub Robot Analysis Total . | . . . . Derelict Logs Recovered 1 | . . 1 . Drone Launches . | . . . . Drone Recoveries . | . . . . Exploration | -11 -10 -10 -10 ------------- Run | Yrd Mat Min Sub Turns Passed 2321 | 302 632 1148 239 Spaces Moved 1517 | 220 404 719 174 Core 44 | 13 . . 31 Treads . | . . . . Legs 976 | . 114 719 143 Wheels 497 | 207 290 . . Hover . | . . . . Flight . | . . . . Fastest Speed 50 | 50 100 120 100 Average Speed 120 | 97 129 122 121 Slowest Speed 260 | 100 260 260 250 Overloaded Moves . | . . . . Propulsion Burnouts . | . . . . Robots Hopped . | . . . . Cave-ins Triggered . | . . . . Exploration Rate (%) 40 | 11 42 93 14 Regions Visited 3 Branch Regions 2 Pre-discovered Areas 1 | . . 1 . Known Exits Taken . | . . . . Unknown Exits Taken 3 | 1 1 1 . Scrap Searched 1 | . . 1 . Spaces Dug . | . . . . Terrain Destroyed . | . . . . Melee . | . . . . Projectile . | . . . . AOE . | . . . . Terrain Rammed . | . . . . Walls Destroyed . | . . . . Machines Disabled . | . . . . Actions | -11 -10 -10 -10 --------- Run | Yrd Mat Min Sub Total 1916 | 284 467 971 194 Wait 248 | 14 12 217 5 Move 1514 | 219 403 718 174 Hop . | . . . . Pick Up 37 | 14 14 8 1 Fast Attach 3 | 1 . . 2 Attach 19 | 7 6 6 . Detach 3 | 2 1 . . Swap 1 | . 1 . . Drop 22 | 2 5 10 5 Fire 69 | 25 25 12 7 Melee . | . . . . Ram . | . . . . Kick . | . . . . Crush . | . . . . Escape Stasis . | . . . . Rewire . | . . . . Trap . | . . . . Miscellaneous . | . . . . Route ------- -11/Scrapyard -10/Materials (discovered 2 exits: [*Mat] / *Min) -10/Mines (discovered 3 exits: [*Mat x2] / [*Sub]) -10/Subcaves History --------- Turn | Location | Event 9 | -11/Scrapyard | Discovered new exit (range 15) 303 | -11/Scrapyard | Entered Materials 304 | -10/Materials | Build established: Mutant 518 | -10/Materials | Discovered new exit (range 10) 823 | -10/Materials | Discovered new exit (range 12) 935 | -10/Materials | Entered Mines 957 | -10/Mines | Met a Derelict bent on vengeance 999 | -10/Mines | Lost 3 parts (1p1n1w) 1458 | -10/Mines | Learned location of Zion (-7) 1532 | -10/Mines | Found the Drone Emporium 1552 | -10/Mines | Found Prototype Device 1627 | -10/Mines | Found a damaged Exp. Sensor Array with a note attached 1639 | -10/Mines | Found Prototype Device 1642 | -10/Mines | Identified Exp. Sensor Array 1933 | -10/Mines | Discovered new exit (range 5) 1986 | -10/Mines | Discovered new exit (range 12) 2038 | -10/Mines | Discovered new exit (range 6) 2083 | -10/Mines | Entered Subcaves 2109 | -10/Subcaves | Shifting Twisted Machinery released Piercing Trap 2250 | -10/Subcaves | Ambushed by swarm of Subdwellers 2252 | -10/Subcaves | Ambushed by Subdwellers from Twisted Machinery 2263 | -10/Subcaves | Core integrity fell below 50% 2306 | -10/Subcaves | Lost 4 parts (1p2n1w) 2313 | -10/Subcaves | Core integrity fell below 20% 2322 | -10/Subcaves | Destroyed by 22-G1M(R) with Subdweller Laser Last Messages --------------- 02252_ IE-SFF(R) destroyed. 02252_ 2X-B0M(R) angrily emerges from the Twisted Machinery. 02261_ EM Pulse Gun destroyed. 02262_ Lgt. Ion Engine destroyed. 02268_ Critical hit (Destroy). 02268_ Myomer Leg destroyed. 02269_ QB-DV6(R) affixes Scrap Shield Fragment to Scrap Shield. 02269_ SK-5HC(R) destroyed. 02273_ D6-A64(R) affixes Scrap Shield Fragment to Scrap Shield. 02275_ Aluminum Leg destroyed. 02286_ Dropped Med. Storage Unit. 02317_ 19-WUR(R) suffers critical hit (Destroy). 02317_ 19-WUR(R) destroyed. 02319_ Exp. Sensor Array destroyed. 02321_ D6-A64(R) affixes Scrap Shield Fragment to Scrap Shield. 02321_ Sub. Machine Gun destroyed. Map ----- +----------------------------------------------------+ | ???????????????????????????????????????????? | | ???????????????????????????????????????????? | | ???????????????????????????????????????????? | | ???????????????????????????????????????????? | | ??????????????###??????????????????????????? | | ?????????????## ??????????????????????????? | | ????????????## #####?????????????????????? | | ???????????## ## ####??????????????????? | | ???????????# ###????????????????? | | ???????????# #????????????????? | | ????????????# ##???????????????? | | ????????????# ##??????????????? | | ?????????????# #??????????????? | | ???# ????????# #??????????????? | | ??# ####??# #??????????????? | | ?? % #?## ## ##??????????????? | | ? ### ##& ##???????????????? | | ?? % # %R ##????????????????? | | ??? #### ### R ##????????????????? | | ???????????## ###?## RR #????????????????? | | ???????????# ##????## #????????????????? | | ???????????# ##?????# ##????????????????? | | ???????????## ####??# ####??????????????? | | ????????????## " #??# ##?????????????? | | ?????????????## ["#### "#?????????????? | | ???????####???## /!" ###@"""#?????????????? | | ??????## ##???##=!!" #?##""##?????????????? | | ??????# %###??## # "#??#""#??????????????? | | ??????# % %##??### "##?" #??????????????? | | ?????## ###### "#? #??????????????? | | ?????# ## "[% ## "##?] ??????????????? | | ?????# ###" ""= ""##" ###?????????????? | | ?????###?#" ""#""" ???????????????? | | ?????????#" """""??#???????????????? | | ????????#" =]* "" ""??????????????????? | | ????????##" !% """ ##??????????????????? | | ?????????##""# """""##?????????????????? | | ??????????#### " % """"""##????????????????? | | ?????????????##" %%= ##???????????????? | | ??????#??????# ! ##??????????????? | | ?????# ????#### #??????????????? | | ????##" ???????## #??????????????? | | ?? #"" ??????##= ##??????????????? | | ?? ??????#*%! ##???????????????? | | ??? ?????## !% ##????????????????? | | ????#" #????# [ ##?????????????????? | | ?????# ###### = ##??????????????????? | | ?????# ## ##???????????????????? | | ??????# #????????????????????? | | ??????# ##????????????????????? | +----------------------------------------------------+ Best States ------------- Heat Dissipation 39 Energy Generation 14 Energy Capacity 160 Matter Stores 300 Matter Capacity 300 Sight Range 16 Robot Scan Range 20 Terrain Scan Density 10 Evasion (%) 55 Item Schematics ----------------- None Robot Schematics ------------------ None Fabricated ------------ Nothing Alien Tech Used ----------------- None Achievements -------------- None Challenges ------------ None Game ------ Seed AntimissileCryofiberOptics Manual? 0 Play Time 00:43:47 Cumulative 14.2 hours Start 2024.03.23 @ 23:58:13 End 2024.03.24 @ 00:55:42 Sessions 1 Manual Loads 0 Difficulty Rogue Special Mode None Game No. 39 Rogue 39 Adventurer 0 Explorer 0 Win Type - Total 0 Types 0/0/0/0/0/0/0/0/0 Lore% 14 Gallery% 20 Achievement% 15 Wizard Run 0 Options --------- Layout 1 ASCII 0 Keyboard 0 Movement Numpad Keybinds 0 Fullscreen 1 Font 24/Smallcaps Map View 50x35 Zoom Use 15% Tactical HUD 1 Map Filters NONE Filters NONE Steam 1 RUN: c7834f50-6cf4-4cf5-9d40-bb8a1fd27b4b